[Event "Hunan Belt and Road Open 2019"]
[Site "Hunan"]
[Date "2019.07.29"]
[Round "1.31"]
[White "Megaranto, Susanto"]
[Black "Lin, Weiguo"]
[Result "1/2-1/2"]
[ECO "B52"]
[WhiteElo "2545"]
[BlackElo "2408"]
[Annotator "ChessBase"]
[PlyCount "102"]
[EventDate "2019.07.29"]
[EventType "swiss"]
[EventCountry "CHN"]
[SourceTitle "playchess.com"]
[Source "ChessBase"]
[SourceQuality "1"]
[TimeControl "5400+30"]

1. e4 {[%emt 0:00:00]} c5 {[%emt 0:00:04]} 2. Nf3 {[%emt 0:00:00]} d6 {[%emt 0:00:07]} 3. Bb5+ {[%emt 0:00:02]} Bd7 {[%emt 0:00:10]} 4. Bxd7+ {[%emt 0:00:38]} Nxd7 {[%emt 0:00:03]} 5. O-O {[%emt 0:00:28]} Ngf6 {[%emt 0:00:13]} 6. Qe2 {[%emt 0:00:51]} e6 {[%emt 0:00:33]} 7. d4 {[%emt 0:00:25]} cxd4 {[%emt 0:00:38]} 8. Nxd4 {[%emt 0:00:05]} Be7 {[%emt 0:00:45]} 9. c4 {[%emt 0:02:37]} O-O {[%emt 0:00:08]} 10. Nc3 {[%emt 0:00:04]} Rc8 {[%emt 0:00:46]} 11. b3 {[%emt 0:04:33]} a6 {[%emt 0:00:14]} 12. Bb2 {[%emt 0:01:29]} Re8 {[%emt 0:01:14]} 13. Rfd1 {[%emt 0:02:17]} Qc7 {[%emt 0:02:15]} 14. Rac1 {[%emt 0:02:06]} Qb8 {[%emt 0:06:29]} 15. f4 {[%emt 0:01:52]} g6 {[%emt 0:07:35]} 16. Kh1 {[%emt 0:04:09]} Bf8 {[%emt 0:04:13]} 17. Nf3 {[%emt 0:05:03]} Nh5 {[%emt 0:14:52]} 18. g3 {[%emt 0:11:48]} Rcd8 {[%emt 0:06:30]} 19. Rc2 {[%emt 0:00:56]} b6 {[%emt 0:04:37]} 20. Rcd2 {[%emt 0:00:53]} Qb7 {[%emt 0:00:27]} 21. Ba3 {[%emt 0:07:26]} Bg7 {[%emt 0:05:41]} 22. e5 {[%emt 0:04:38]} dxe5 {[%emt 0:12:54]} 23. Ne4 {[%emt 0:03:42]} Qc7 {[%emt 0:05:21]} 24. Bd6 {[%emt 0:11:16]} Qc8 {[%emt 0:01:48]} 25. fxe5 {[%emt 0:02:35]} f5 {[%emt 0:01:08]} 26. Nf2 {[%emt 0:03:52]} Nc5 {[%emt 0:05:29]} 27. Qe3 {[%emt 0:03:57]} Qc6 {[%emt 0:00:36]} 28. Bxc5 {[%emt 0:05:32]} Rxd2 {[%emt 0:00:07]} 29. Rxd2 {[%emt 0:00:08]} bxc5 {[%emt 0:00:41]} 30. Kg1 {[%emt 0:02:15]} Bf8 {[%emt 0:03:24]} 31. g4 {[%emt 0:03:03]} fxg4 {[%emt 0:00:53]} 32. Nxg4 {[%emt 0:01:05]} Be7 {[%emt 0:00:59]} 33. Rf2 {[%emt 0:00:44]} Rf8 {[%emt 0:00:49]} 34. Nd2 {[%emt 0:00:11]} Rxf2 {[%emt 0:01:15]} 35. Qxf2 {[%emt 0:01:36]} Bg5 {[%emt 0:00:46]} 36. Nf3 {[%emt 0:02:49]} Qe4 {[%emt 0:00:59]} 37. h3 {[%emt 0:00:11]} Be7 {[%emt 0:02:22]} 38. Kh2 {[%emt 0:04:17]} Kg7 {[%emt 0:01:44]} 39. Qe3 {[%emt 0:02:42]} Qc2+ {[%emt 0:00:22]} 40. Qd2 {[%emt 0:00:12]} Qe4 {[%emt 0:01:01]} 41. Qh6+ {[%emt 0:01:44]} Kg8 {[%emt 0:00:22]} 42. Qe3 {[%emt 0:00:04]} Qc2+ {[%emt 0:00:13]} 43. Qd2 {[%emt 0:00:15]} Qe4 {[%emt 0:00:32]} 44. Qe3 {[%emt 0:00:31]} Qb1 {[%emt 0:00:57]} 45. Qe2 {[%emt 0:02:56]} Kg7 {[%emt 0:02:09]} 46. Qd2 {[%emt 0:00:07]} Qe4 {[%emt 0:01:07]} 47. Qh6+ {[%emt 0:01:01]} Kg8 {[%emt 0:00:10]} 48. Qe3 {[%emt 0:00:01]} Qb1 {[%emt 0:00:22]} 49. Qe2 {[%emt 0:00:11]} Kg7 {[%emt 0:00:11]} 50. Qd2 {[%emt 0:00:04]} Qe4 {[%emt 0:00:42]} 51. Qh6+ {[%emt 0:00:43]} Kg8 {[%emt 0:00:06]} 1/2-1/2

[Event "Hunan Belt and Road Open 2019"]
[Site "Hunan"]
[Date "2019.07.29"]
[Round "1.32"]
[White "Gan-Erdene, Sugar"]
[Black "Batchuluun, Tsegmed"]
[Result "1/2-1/2"]
[ECO "C48"]
[WhiteElo "2408"]
[BlackElo "2535"]
[Annotator "ChessBase"]
[PlyCount "84"]
[EventDate "2019.07.29"]
[EventType "swiss"]
[EventCountry "CHN"]
[SourceTitle "playchess.com"]
[Source "ChessBase"]
[SourceQuality "1"]
[TimeControl "5400+30"]

1. e4 {[%emt 0:00:00]} e5 {[%emt 0:00:00]} 2. Nf3 {[%emt 0:00:00]} Nc6 {[%emt 0:00:00]} 3. Nc3 {[%emt 0:00:00]} Nf6 {[%emt 0:00:00]} 4. Bb5 {[%emt 0:00:00]} Nd4 {[%emt 0:00:00]} 5. Ba4 {[%emt 0:01:49]} c6 {[%emt 0:00:26]} 6. O-O {[%emt 0:13:20]} a5 {[%emt 0:12:15]} 7. Bb3 {[%emt 0:01:30]} d6 {[%emt 0:06:26]} 8. Nxd4 {[%emt 0:15:06]} exd4 {[%emt 0:00:06]} 9. Ne2 {[%emt 0:00:17]} a4 {[%emt 0:02:04]} 10. Bc4 {[%emt 0:00:20]} Nxe4 {[%emt 0:02:30]} 11. Re1 {[%emt 0:09:27]} d5 {[%emt 0:02:46]} 12. Bd3 {[%emt 0:02:15]} Be7 {[%emt 0:34:26]} 13. Nxd4 {[%emt 0:03:05]} O-O {[%emt 0:00:08]} 14. c3 {[%emt 0:08:42]} Bc5 {[%emt 0:05:40]} 15. Bxe4 {[%emt 0:08:03]} dxe4 {[%emt 0:00:41]} 16. Rxe4 {[%emt 0:01:05]} f5 {[%emt 0:00:11]} 17. Re1 {[%emt 0:04:25]} Bxd4 {[%emt 0:02:46]} 18. cxd4 {[%emt 0:00:05]} Qxd4 {[%emt 0:02:30]} 19. d3 {[%emt 0:01:11]} Bd7 {[%emt 0:03:08]} 20. Qc2 {[%emt 0:04:55]} b5 {[%emt 0:05:56]} 21. Be3 {[%emt 0:03:52]} Qd5 {[%emt 0:00:32]} 22. Qc5 {[%emt 0:02:38]} Be6 {[%emt 0:03:31]} 23. Qxd5 {[%emt 0:09:22]} Bxd5 {[%emt 0:00:06]} 24. Bc5 {[%emt 0:00:49]} Rfe8 {[%emt 0:00:38]} 25. a3 {[%emt 0:00:25]} f4 {[%emt 0:01:13]} 26. f3 {[%emt 0:00:40]} Kf7 {[%emt 0:00:06]} 27. Kf2 {[%emt 0:00:13]} g5 {[%emt 0:00:48]} 28. g3 {[%emt 0:01:29]} fxg3+ {[%emt 0:00:49]} 29. Kxg3 {[%emt 0:00:20]} h5 {[%emt 0:03:23]} 30. f4 {[%emt 0:04:09]} Rxe1 {[%emt 0:00:46]} 31. Rxe1 {[%emt 0:00:05]} Rg8 {[%emt 0:00:52]} 32. Rf1 {[%emt 0:03:23]} gxf4+ {[%emt 0:03:38]} 33. Kxf4 {[%emt 0:00:05]} Rg2 {[%emt 0:01:18]} 34. Ke5+ {[%emt 0:00:49]} Kg6 {[%emt 0:01:47]} 35. Rg1 {[%emt 0:00:45]} Rxg1 {[%emt 0:00:10]} 36. Bxg1 {[%emt 0:00:04]} Kg5 {[%emt 0:00:04]} 37. Bc5 {[%emt 0:00:23]} Kg4 {[%emt 0:00:00]} 38. Kd4 {[%emt 0:00:10]} Kf3 {[%emt 0:00:34]} 39. Kc3 {[%emt 0:00:07]} h4 {[%emt 0:00:30]} 40. Bd6 {[%emt 0:00:06]} Ke2 {[%emt 0:00:15]} 41. d4 {[%emt 0:00:12]} h3 {[%emt 0:00:04]} 42. Be5 {[%emt 0:00:04]} Ke3 {[%emt 0:00:38]} 1/2-1/2

[Event "Hunan Belt and Road Open 2019"]
[Site "Hunan"]
[Date "2019.07.29"]
[Round "1.33"]
[White "Zhao, Zong-Yuan"]
[Black "Gusain, Himal"]
[Result "1/2-1/2"]
[ECO "B07"]
[WhiteElo "2529"]
[BlackElo "2407"]
[Annotator "ChessBase"]
[PlyCount "91"]
[EventDate "2019.07.29"]
[EventType "swiss"]
[EventCountry "CHN"]
[SourceTitle "playchess.com"]
[Source "ChessBase"]
[SourceQuality "1"]
[TimeControl "5400+30"]

1. e4 {[%emt 0:00:00]} d6 {[%emt 0:00:30]} 2. d4 {[%emt 0:00:17]} Nf6 {[%emt 0:00:27]} 3. Nc3 {[%emt 0:00:23]} e5 {[%emt 0:00:17]} 4. Nge2 {[%emt 0:02:30]} c6 {[%emt 0:03:23]} 5. a4 {[%emt 0:02:11]} Nbd7 {[%emt 0:05:07]} 6. g3 {[%emt 0:00:31]} g6 {[%emt 0:00:23]} 7. Bg2 {[%emt 0:00:10]} Bg7 {[%emt 0:00:17]} 8. O-O {[%emt 0:00:04]} O-O {[%emt 0:00:36]} 9. h3 {[%emt 0:01:12]} Re8 {[%emt 0:01:28]} 10. Be3 {[%emt 0:05:03]} Nb6 {[%emt 0:06:40]} 11. b3 {[%emt 0:07:48]} exd4 {[%emt 0:00:09]} 12. Bxd4 {[%emt 0:00:06]} a5 {[%emt 0:02:51]} 13. g4 {[%emt 0:07:18]} d5 {[%emt 0:06:36]} 14. e5 {[%emt 0:06:43]} Nfd7 {[%emt 0:00:08]} 15. f4 {[%emt 0:00:24]} f6 {[%emt 0:00:20]} 16. exf6 {[%emt 0:00:59]} Nxf6 {[%emt 0:00:19]} 17. Ng3 {[%emt 0:00:54]} Rf8 {[%emt 0:06:12]} 18. f5 {[%emt 0:17:52]} g5 {[%emt 0:00:10]} 19. Qd2 {[%emt 0:02:48]} h6 {[%emt 0:01:16]} 20. Qf2 {[%emt 0:03:54]} Nbd7 {[%emt 0:00:25]} 21. Rfe1 {[%emt 0:00:29]} b6 {[%emt 0:09:09]} 22. Re6 {[%emt 0:01:30]} Bb7 {[%emt 0:00:44]} 23. Rae1 {[%emt 0:03:11]} Rf7 {[%emt 0:04:29]} 24. Nd1 {[%emt 0:10:16]} c5 {[%emt 0:00:57]} 25. Bb2 {[%emt 0:01:19]} Nf8 {[%emt 0:00:18]} 26. R6e2 {[%emt 0:00:51]} d4 {[%emt 0:02:26]} 27. c4 {[%emt 0:03:13]} Ra7 {[%emt 0:05:15]} 28. Bxb7 {[%emt 0:05:40]} Rfxb7 {[%emt 0:02:50]} 29. Bc1 {[%emt 0:01:09]} Re7 {[%emt 0:00:33]} 30. Nb2 {[%emt 0:00:22]} Rxe2 {[%emt 0:00:57]} 31. Qxe2 {[%emt 0:00:11]} Kf7 {[%emt 0:00:28]} 32. Nd3 {[%emt 0:00:29]} Re7 {[%emt 0:00:12]} 33. Qxe7+ {[%emt 0:01:24]} Qxe7 {[%emt 0:00:10]} 34. Rxe7+ {[%emt 0:00:03]} Kxe7 {[%emt 0:00:09]} 35. Kg2 {[%emt 0:00:53]} N8d7 {[%emt 0:01:07]} 36. Bd2 {[%emt 0:00:59]} Kd6 {[%emt 0:01:23]} 37. Be1 {[%emt 0:00:36]} Ne5 {[%emt 0:00:37]} 38. Nxe5 {[%emt 0:02:45]} Kxe5 {[%emt 0:00:07]} 39. Kf3 {[%emt 0:00:02]} Kd6 {[%emt 0:02:20]} 40. Nf1 {[%emt 0:04:12]} Nd7 {[%emt 0:00:15]} 41. Nd2 {[%emt 0:00:56]} Be5 {[%emt 0:00:37]} 42. Ne4+ {[%emt 0:02:41]} Ke7 {[%emt 0:00:06]} 43. Nf2 {[%emt 0:01:55]} Bf4 {[%emt 0:04:22]} 44. Nd3 {[%emt 0:01:27]} Ne5+ {[%emt 0:00:26]} 45. Nxe5 {[%emt 0:00:04]} Bxe5 {[%emt 0:00:06]} 46. Ke4 {[%emt 0:03:23]} 1/2-1/2

[Event "Hunan Belt and Road Open 2019"]
[Site "Hunan"]
[Date "2019.07.29"]
[Round "1.34"]
[White "Chu, Wei Chao"]
[Black "Yeoh, Li Tian"]
[Result "1-0"]
[ECO "A61"]
[WhiteElo "2406"]
[BlackElo "2528"]
[Annotator "ChessBase"]
[PlyCount "93"]
[EventDate "2019.07.29"]
[EventType "swiss"]
[EventCountry "CHN"]
[SourceTitle "playchess.com"]
[Source "ChessBase"]
[SourceQuality "1"]
[TimeControl "5400+30"]

1. d4 {[%emt 0:00:00]} Nf6 {[%emt 0:00:00]} 2. c4 {[%emt 0:00:00]} c5 {[%emt 0:00:00]} 3. d5 {[%emt 0:00:00]} e6 {[%emt 0:00:00]} 4. Nc3 {[%emt 0:00:00]} exd5 {[%emt 0:00:05]} 5. cxd5 {[%emt 0:00:00]} d6 {[%emt 0:00:07]} 6. Nf3 {[%emt 0:00:05]} g6 {[%emt 0:00:07]} 7. Bf4 {[%emt 0:00:43]} a6 {[%emt 0:00:14]} 8. a4 {[%emt 0:00:07]} Bg7 {[%emt 0:00:09]} 9. e3 {[%emt 0:00:05]} O-O {[%emt 0:00:16]} 10. h3 {[%emt 0:00:22]} Ne8 {[%emt 0:00:25]} 11. Be2 {[%emt 0:01:35]} Nd7 {[%emt 0:00:11]} 12. O-O {[%emt 0:00:09]} Qe7 {[%emt 0:00:04]} 13. Nd2 {[%emt 0:01:31]} Ne5 {[%emt 0:00:13]} 14. Bh2 {[%emt 0:05:43]} f5 {[%emt 0:00:24]} 15. Re1 {[%emt 0:02:27]} Nf6 {[%emt 0:00:59]} 16. f4 {[%emt 0:06:09]} Nf7 {[%emt 0:01:26]} 17. Bf3 {[%emt 0:00:11]} Rb8 {[%emt 0:07:25]} 18. Kh1 {[%emt 0:01:59]} b5 {[%emt 0:16:55]} 19. axb5 {[%emt 0:00:27]} axb5 {[%emt 0:02:12]} 20. e4 {[%emt 0:00:07]} fxe4 {[%emt 0:00:47]} 21. Ndxe4 {[%emt 0:00:41]} Nxe4 {[%emt 0:01:07]} 22. Nxe4 {[%emt 0:01:16]} Qd8 {[%emt 0:01:25]} 23. Qd2 {[%emt 0:03:19]} Bf5 {[%emt 0:02:55]} 24. g4 {[%emt 0:08:06]} Bxe4 {[%emt 0:00:21]} 25. Bxe4 {[%emt 0:00:02]} Qf6 {[%emt 0:00:20]} 26. Re2 {[%emt 0:00:58]} Ra8 {[%emt 0:05:33]} 27. Rxa8 {[%emt 0:04:51]} Rxa8 {[%emt 0:00:46]} 28. b3 {[%emt 0:00:09]} c4 {[%emt 0:14:05]} 29. bxc4 {[%emt 0:01:43]} bxc4 {[%emt 0:00:09]} 30. Kg2 {[%emt 0:00:36]} Qa1 {[%emt 0:05:44]} 31. Bg1 {[%emt 0:07:57]} Bc3 {[%emt 0:20:53]} 32. Qe3 {[%emt 0:04:28]} Bg7 {[%emt 0:17:38]} 33. Bf2 {[%emt 0:02:42]} Ra3 {[%emt 0:00:53]} 34. Qb6 {[%emt 0:03:09]} Rb3 {[%emt 0:01:06]} 35. Qc6 {[%emt 0:00:19]} Qc3 {[%emt 0:00:25]} 36. Qc8+ {[%emt 0:03:36]} Bf8 {[%emt 0:00:06]} 37. g5 {[%emt 0:00:05]} Qc1 {[%emt 0:07:47]} 38. Qg4 {[%emt 0:07:12]} Rb2 {[%emt 0:03:28]} 39. Rxb2 {[%emt 0:02:45]} Qxb2 {[%emt 0:00:00]} 40. h4 {[%emt 0:00:35]} c3 {[%emt 0:00:00]} 41. Qd1 {[%emt 0:00:10]} Bg7 {[%emt 0:00:00]} 42. h5 {[%emt 0:01:15]} gxh5 {[%emt 0:00:00]} 43. Qxh5 {[%emt 0:00:05]} Bd4 {[%emt 0:00:00]} 44. Qxh7+ {[%emt 0:00:12]} Kf8 {[%emt 0:00:00]} 45. Bc2 {[%emt 0:00:04]} Bg7 {[%emt 0:00:00]} 46. Qf5 {[%emt 0:00:33]} Ke8 {[%emt 0:00:00]} 47. Ba4+ {[%emt 0:00:43]} 1-0

[Event "Hunan Belt and Road Open 2019"]
[Site "Hunan"]
[Date "2019.07.29"]
[Round "1.35"]
[White "Li, Di"]
[Black "Lin, Yi"]
[Result "1-0"]
[ECO "A16"]
[WhiteElo "2523"]
[BlackElo "2406"]
[Annotator "ChessBase"]
[PlyCount "73"]
[EventDate "2019.07.29"]
[EventType "swiss"]
[EventCountry "CHN"]
[SourceTitle "playchess.com"]
[Source "ChessBase"]
[SourceQuality "1"]
[TimeControl "5400+30"]

1. Nf3 {[%emt 0:00:00]} Nf6 {[%emt 0:00:00]} 2. c4 {[%emt 0:00:00]} g6 {[%emt 0:00:01]} 3. Nc3 {[%emt 0:00:02]} d5 {[%emt 0:00:06]} 4. cxd5 {[%emt 0:00:07]} Nxd5 {[%emt 0:00:07]} 5. h4 {[%emt 0:00:24]} Bg7 {[%emt 0:02:52]} 6. e4 {[%emt 0:00:39]} Nxc3 {[%emt 0:00:07]} 7. dxc3 {[%emt 0:00:35]} Qxd1+ {[%emt 0:00:08]} 8. Kxd1 {[%emt 0:00:04]} Nd7 {[%emt 0:00:14]} 9. Nd4 {[%emt 0:01:29]} c5 {[%emt 0:02:34]} 10. Nb5 {[%emt 0:03:09]} Be5 {[%emt 0:01:57]} 11. Na3 {[%emt 0:15:13]} a6 {[%emt 0:09:03]} 12. Nc4 {[%emt 0:02:07]} b5 {[%emt 0:00:40]} 13. Nxe5 {[%emt 0:01:41]} Nxe5 {[%emt 0:00:06]} 14. Be3 {[%emt 0:05:18]} Nc4 {[%emt 0:17:07]} 15. Bxc4 {[%emt 0:01:29]} bxc4 {[%emt 0:02:33]} 16. Kc2 {[%emt 0:13:35]} h5 {[%emt 0:00:56]} 17. Rhd1 {[%emt 0:06:46]} Be6 {[%emt 0:02:30]} 18. Bxc5 {[%emt 0:04:06]} f6 {[%emt 0:02:03]} 19. b4 {[%emt 0:02:24]} Kf7 {[%emt 0:16:59]} 20. a4 {[%emt 0:08:02]} Rhc8 {[%emt 0:00:09]} 21. Be3 {[%emt 0:04:44]} Rab8 {[%emt 0:05:00]} 22. Kb2 {[%emt 0:01:38]} Ke8 {[%emt 0:08:06]} 23. Ka3 {[%emt 0:00:44]} Rd8 {[%emt 0:04:04]} 24. Rd4 {[%emt 0:03:50]} f5 {[%emt 0:00:22]} 25. exf5 {[%emt 0:03:43]} Rxd4 {[%emt 0:03:11]} 26. Bxd4 {[%emt 0:00:14]} gxf5 {[%emt 0:00:15]} 27. Re1 {[%emt 0:04:51]} Bd5 {[%emt 0:00:05]} 28. Re5 {[%emt 0:01:02]} e6 {[%emt 0:02:07]} 29. Re3 {[%emt 0:00:45]} Kf7 {[%emt 0:10:26]} 30. Rg3 {[%emt 0:00:32]} Rg8 {[%emt 0:00:07]} 31. Rxg8 {[%emt 0:00:17]} Kxg8 {[%emt 0:00:04]} 32. b5 {[%emt 0:00:39]} axb5 {[%emt 0:06:25]} 33. axb5 {[%emt 0:00:03]} Bxg2 {[%emt 0:04:43]} 34. Kb4 {[%emt 0:00:08]} Kf7 {[%emt 0:00:33]} 35. Kxc4 {[%emt 0:00:43]} f4 {[%emt 0:00:45]} 36. Kc5 {[%emt 0:01:34]} Ke7 {[%emt 0:00:15]} 37. Be5 {[%emt 0:00:32]} 1-0

[Event "Hunan Belt and Road Open 2019"]
[Site "Hunan"]
[Date "2019.07.29"]
[Round "1.36"]
[White "Xu, Minghui"]
[Black "Liu, Yan"]
[Result "1/2-1/2"]
[ECO "E12"]
[WhiteElo "2401"]
[BlackElo "2516"]
[Annotator "ChessBase"]
[PlyCount "44"]
[EventDate "2019.07.29"]
[EventType "swiss"]
[EventCountry "CHN"]
[SourceTitle "playchess.com"]
[Source "ChessBase"]
[SourceQuality "1"]
[TimeControl "5400+30"]

1. d4 {[%emt 0:00:00]} Nf6 {[%emt 0:00:10]} 2. c4 {[%emt 0:00:00]} e6 {[%emt 0:00:50]} 3. Nf3 {[%emt 0:00:22]} b6 {[%emt 0:01:56]} 4. a3 {[%emt 0:00:26]} Bb7 {[%emt 0:02:51]} 5. Nc3 {[%emt 0:00:08]} Ne4 {[%emt 0:02:06]} 6. Nxe4 {[%emt 0:00:38]} Bxe4 {[%emt 0:00:07]} 7. e3 {[%emt 0:00:38]} Qf6 {[%emt 0:00:45]} 8. Bd3 {[%emt 0:06:55]} Bxd3 {[%emt 0:02:57]} 9. Qxd3 {[%emt 0:00:03]} Qg6 {[%emt 0:00:05]} 10. Qxg6 {[%emt 0:08:25]} hxg6 {[%emt 0:00:06]} 11. b4 {[%emt 0:02:00]} d5 {[%emt 0:08:30]} 12. cxd5 {[%emt 0:03:38]} exd5 {[%emt 0:00:08]} 13. Bd2 {[%emt 0:00:22]} Bd6 {[%emt 0:02:19]} 14. a4 {[%emt 0:01:53]} f6 {[%emt 0:10:42]} 15. Ke2 {[%emt 0:02:15]} Nc6 {[%emt 0:05:14]} 16. Rhb1 {[%emt 0:15:40]} Kd7 {[%emt 0:06:53]} 17. h3 {[%emt 0:00:33]} Ne7 {[%emt 0:07:23]} 18. b5 {[%emt 0:03:30]} a6 {[%emt 0:11:17]} 19. a5 {[%emt 0:04:55]} axb5 {[%emt 0:00:17]} 20. Rxb5 {[%emt 0:00:23]} bxa5 {[%emt 0:02:12]} 21. Rbxa5 {[%emt 0:00:54]} Rxa5 {[%emt 0:00:07]} 22. Rxa5 {[%emt 0:00:06]} Rb8 {[%emt 0:00:12]} 1/2-1/2